[Event "Live Chess"]
[Site "Chess.com"]
[Date "2023.05.20"]
[Round "-"]
[White "MrBlond89"]
[Black "CeladonFish"]
[Result "1/2-1/2"]
[WhiteElo "1370"]
[BlackElo "1168"]
[TimeControl "300"]
[EndTime "15:17:30 PDT"]
[Termination "Game drawn - timeout vs insufficient material"]

1. e4 {[%clk 0:04:58.6]} 1... d6 {[%clk 0:04:59.5]} 2. Nf3 {[%clk 0:04:57]} 2...
Nf6 {[%clk 0:04:59.1]} 3. Nc3 {[%clk 0:04:53]} 3... g6 {[%clk 0:04:58.1]} 4. d4
{[%clk 0:04:51.8]} 4... Bg7 {[%clk 0:04:57.3]} 5. Bg5 {[%clk 0:04:48.1]} 5...
O-O {[%clk 0:04:56.2]} 6. Bd3 {[%clk 0:04:42.7]} 6... c5 {[%clk 0:04:46.8]} 7.
Qe2 {[%clk 0:04:37.7]} 7... cxd4 {[%clk 0:04:44.3]} 8. Nxd4 {[%clk 0:04:34.3]}
8... e5 {[%clk 0:04:42.5]} 9. Nf3 {[%clk 0:04:31.2]} 9... Bg4 {[%clk 0:04:39.9]}
10. h3 {[%clk 0:04:28.8]} 10... Bxf3 {[%clk 0:04:38.8]} 11. Qxf3 {[%clk
0:04:28.4]} 11... Nc6 {[%clk 0:04:36.8]} 12. O-O-O {[%clk 0:04:27.1]} 12... Nd4
{[%clk 0:04:35.5]} 13. Qe3 {[%clk 0:04:16.9]} 13... Rc8 {[%clk 0:04:09.4]} 14.
f4 {[%clk 0:04:12.4]} 14... Nc6 {[%clk 0:03:57.2]} 15. f5 {[%clk 0:04:06]} 15...
Ne7 {[%clk 0:03:28.7]} 16. g4 {[%clk 0:04:02.7]} 16... d5 {[%clk 0:03:26.3]} 17.
exd5 {[%clk 0:03:48.9]} 17... Nexd5 {[%clk 0:03:24.6]} 18. Nxd5 {[%clk
0:03:47.6]} 18... Qxd5 {[%clk 0:03:22.5]} 19. Bxf6 {[%clk 0:03:26.8]} 19... Bxf6
{[%clk 0:03:20.5]} 20. g5 {[%clk 0:03:26.2]} 20... Bg7 {[%clk 0:03:06.5]} 21.
fxg6 {[%clk 0:03:25.1]} 21... fxg6 {[%clk 0:03:05.1]} 22. h4 {[%clk 0:03:20.7]}
22... Qxa2 {[%clk 0:03:03.3]} 23. h5 {[%clk 0:03:15.5]} 23... Qa1+ {[%clk
0:03:01.3]} 24. Kd2 {[%clk 0:03:14.1]} 24... Qa5+ {[%clk 0:02:59.8]} 25. Kc1
{[%clk 0:03:11.9]} 25... e4 {[%clk 0:02:43]} 26. Bxe4 {[%clk 0:02:51.2]} 26...
Qb6 {[%clk 0:02:37.9]} 27. Qxb6 {[%clk 0:02:42.5]} 27... axb6 {[%clk 0:02:36.4]}
28. Bxb7 {[%clk 0:02:41.6]} 28... Rc7 {[%clk 0:02:35.6]} 29. Bf3 {[%clk
0:02:30.2]} 29... Rxf3 {[%clk 0:02:31.4]} 30. hxg6 {[%clk 0:02:28.3]} 30... hxg6
{[%clk 0:02:29.5]} 31. Rd8+ {[%clk 0:02:24.5]} 31... Kf7 {[%clk 0:02:27.9]} 32.
Rh7 {[%clk 0:02:14.7]} 32... Rf2 {[%clk 0:02:22.8]} 33. Rb8 {[%clk 0:02:07.5]}
33... Rcxc2+ {[%clk 0:02:20.8]} 34. Kd1 {[%clk 0:02:06.3]} 34... Rxb2 {[%clk
0:02:12.8]} 35. Ke1 {[%clk 0:01:56.8]} 35... Rh2 {[%clk 0:02:08.6]} 36. Rxh2
{[%clk 0:01:53.9]} 36... Rxh2 {[%clk 0:02:08.2]} 37. Rxb6 {[%clk 0:01:52.5]}
37... Rh1+ {[%clk 0:02:00.4]} 38. Ke2 {[%clk 0:01:49.9]} 38... Rh2+ {[%clk
0:01:58.1]} 39. Kf3 {[%clk 0:01:48.6]} 39... Rh3+ {[%clk 0:01:54.7]} 40. Kg4
{[%clk 0:01:47.6]} 40... Re3 {[%clk 0:01:49.1]} 41. Rb7+ {[%clk 0:01:44.6]}
41... Re7 {[%clk 0:01:47]} 42. Rb6 {[%clk 0:01:42.8]} 42... Re4+ {[%clk
0:01:36.6]} 43. Kf3 {[%clk 0:01:41.4]} 43... Re6 {[%clk 0:01:32.6]} 44. Rb7+
{[%clk 0:01:40.4]} 44... Re7 {[%clk 0:01:29.7]} 45. Rb6 {[%clk 0:01:39.6]} 45...
Bd4 {[%clk 0:01:27.9]} 46. Rb3 {[%clk 0:01:30.5]} 46... Ke6 {[%clk 0:01:13.3]}
47. Rb6+ {[%clk 0:01:27.1]} 47... Kf5 {[%clk 0:01:12]} 48. Rb5+ {[%clk
0:01:25.2]} 48... Re5 {[%clk 0:01:07.8]} 49. Rb4 {[%clk 0:01:14.1]} 49... Re3+
{[%clk 0:00:59.1]} 50. Kg2 {[%clk 0:01:11.4]} 50... Be5 {[%clk 0:00:53.4]} 51.
Kf2 {[%clk 0:01:02.1]} 51... Bf4 {[%clk 0:00:48.4]} 52. Rb5+ {[%clk 0:00:58.2]}
52... Kg4 {[%clk 0:00:47.8]} 53. Rb1 {[%clk 0:00:50.5]} 53... Bxg5 {[%clk
0:00:41.4]} 54. Rg1+ {[%clk 0:00:47.8]} 54... Kf5 {[%clk 0:00:38.4]} 55. Rxg5+
{[%clk 0:00:45.1]} 55... Kxg5 {[%clk 0:00:37.8]} 56. Kxe3 {[%clk 0:00:44.6]}
56... Kh4 {[%clk 0:00:35.8]} 57. Kf3 {[%clk 0:00:41.7]} 57... g5 {[%clk
0:00:21.8]} 58. Kg2 {[%clk 0:00:41.1]} 58... Kg4 {[%clk 0:00:21]} 59. Kh2 {[%clk
0:00:40.4]} 59... Kf3 {[%clk 0:00:20]} 60. Kg1 {[%clk 0:00:39.9]} 60... Kg3
{[%clk 0:00:18.4]} 61. Kf1 {[%clk 0:00:38.7]} 61... Kh2 {[%clk 0:00:17.5]} 62.
Kf2 {[%clk 0:00:38.2]} 62... g4 {[%clk 0:00:17.2]} 63. Kf1 {[%clk 0:00:37.7]}
63... g3 {[%clk 0:00:16.7]} 64. Ke2 {[%clk 0:00:36.9]} 64... g2 {[%clk
0:00:16.3]} 65. Ke3 {[%clk 0:00:36.8]} 65... g1=Q+ {[%clk 0:00:15.6]} 66. Ke4
{[%clk 0:00:36.7]} 66... Qf2 {[%clk 0:00:15]} 67. Kd5 {[%clk 0:00:35.9]} 67...
Qe3 {[%clk 0:00:14.5]} 68. Kd6 {[%clk 0:00:35]} 68... Qe4 {[%clk 0:00:13.7]} 69.
Kc5 {[%clk 0:00:34.9]} 69... Qe5+ {[%clk 0:00:12.9]} 70. Kc6 {[%clk 0:00:34.4]}
70... Qd4 {[%clk 0:00:12]} 71. Kc7 {[%clk 0:00:32.5]} 71... Kg3 {[%clk
0:00:11.8]} 72. Kc6 {[%clk 0:00:32.1]} 72... Kf4 {[%clk 0:00:11.5]} 73. Kc7
{[%clk 0:00:32]} 73... Ke5 {[%clk 0:00:11.2]} 74. Kc6 {[%clk 0:00:31.9]} 74...
Ke6 {[%clk 0:00:10.8]} 75. Kc7 {[%clk 0:00:31.8]} 75... Qd5 {[%clk 0:00:10.3]}
76. Kb6 {[%clk 0:00:30.9]} 76... Qd6+ {[%clk 0:00:09.4]} 77. Kb5 {[%clk
0:00:29.6]} 77... Qc7 {[%clk 0:00:08.4]} 78. Kb4 {[%clk 0:00:27.9]} 78... Kd6
{[%clk 0:00:07.9]} 79. Kb3 {[%clk 0:00:26.8]} 79... Qc5 {[%clk 0:00:06.5]} 80.
Kb2 {[%clk 0:00:25.2]} 80... Kd5 {[%clk 0:00:03]} 81. Kb3 {[%clk 0:00:23.2]}
81... Kd4 {[%clk 0:00:02.6]} 82. Kb2 {[%clk 0:00:22.1]} 82... Qc3+ {[%clk
0:00:02.3]} 83. Ka2 {[%clk 0:00:20.3]} 1/2-1/2

[Event "Live Chess"]
[Site "Chess.com"]
[Date "2023.05.20"]
[Round "-"]
[White "JoshMcK"]
[Black "1600x"]
[Result "1-0"]
[WhiteElo "1550"]
[BlackElo "1755"]
[TimeControl "300"]
[EndTime "15:17:52 PDT"]
[Termination "JoshMcK won by resignation"]

1. e4 {[%clk 0:04:59.2]} 1... e5 {[%clk 0:04:57.6]} 2. Nf3 {[%clk 0:04:57.7]}
2... d5 {[%clk 0:04:52.7]} 3. exd5 {[%clk 0:04:53]} 3... e4 {[%clk 0:04:49.5]}
4. Qe2 {[%clk 0:04:51.9]} 4... Qe7 {[%clk 0:04:45.2]} 5. Nd4 {[%clk 0:04:40]}
5... a6 {[%clk 0:04:15.9]} 6. d3 {[%clk 0:04:38.1]} 6... exd3 {[%clk 0:03:59.9]}
7. Qxe7+ {[%clk 0:04:35.8]} 7... Nxe7 {[%clk 0:03:55.3]} 8. Bxd3 {[%clk
0:04:35.4]} 8... Nxd5 {[%clk 0:03:49.2]} 9. O-O {[%clk 0:04:34.3]} 9... Bc5
{[%clk 0:03:47.4]} 10. Re1+ {[%clk 0:04:28.4]} 10... Be6 {[%clk 0:03:45.5]} 11.
Nxe6 {[%clk 0:04:27]} 11... fxe6 {[%clk 0:03:43]} 12. Rxe6+ {[%clk 0:04:25.5]}
12... Kd7 {[%clk 0:03:41.3]} 13. Re1 {[%clk 0:04:20]} 13... Nc6 {[%clk
0:03:31.3]} 14. Be3 {[%clk 0:04:11.6]} 14... Kc8 {[%clk 0:03:23.7]} 15. Bxc5
{[%clk 0:04:09.2]} 15... b6 {[%clk 0:03:11.3]} 16. Be3 {[%clk 0:03:59.9]} 16...
Kb7 {[%clk 0:03:08.4]} 17. Be4 {[%clk 0:03:58.7]} 17... Nxe3 {[%clk 0:03:04.5]}
18. Bxc6+ {[%clk 0:03:57.1]} 18... Kxc6 {[%clk 0:03:02.9]} 19. Rxe3 {[%clk
0:03:56.6]} 19... Rhe8 {[%clk 0:03:00]} 20. Rxe8 {[%clk 0:03:54.2]} 20... Rxe8
{[%clk 0:02:58.2]} 21. Nc3 {[%clk 0:03:53.8]} 21... b5 {[%clk 0:02:56.1]} 22.
Kf1 {[%clk 0:03:52.7]} 22... Rd8 {[%clk 0:02:53.8]} 23. Rd1 {[%clk 0:03:50.6]}
23... Rxd1+ {[%clk 0:02:49.1]} 24. Nxd1 {[%clk 0:03:49.2]} 24... h5 {[%clk
0:02:47.4]} 25. Ne3 {[%clk 0:03:47.8]} 25... g6 {[%clk 0:02:45.4]} 26. Ke2
{[%clk 0:03:45.6]} 26... Kd6 {[%clk 0:02:43.9]} 27. Kd3 {[%clk 0:03:44.8]} 27...
a5 {[%clk 0:02:42.4]} 28. h3 {[%clk 0:03:40.2]} 28... a4 {[%clk 0:02:40.1]} 29.
a3 {[%clk 0:03:38.7]} 29... h4 {[%clk 0:02:38.1]} 30. Nf1 {[%clk 0:03:32.8]}
30... c5 {[%clk 0:02:36.2]} 31. Nh2 {[%clk 0:03:31.5]} 31... b4 {[%clk
0:02:34.5]} 32. axb4 {[%clk 0:03:29.4]} 32... cxb4 {[%clk 0:02:33.3]} 33. Nf3
{[%clk 0:03:26.6]} 33... a3 {[%clk 0:02:31.7]} 34. bxa3 {[%clk 0:03:19.5]} 34...
bxa3 {[%clk 0:02:30.5]} 35. Kc3 {[%clk 0:03:18.8]} 35... a2 {[%clk 0:02:29.4]}
36. Kb2 {[%clk 0:03:17.9]} 36... a1=Q+ {[%clk 0:02:26.9]} 37. Kxa1 {[%clk
0:03:16.9]} 37... g5 {[%clk 0:02:22.6]} 38. Nxg5 {[%clk 0:03:15.5]} 38... Kc5
{[%clk 0:02:21.2]} 39. Nf3 {[%clk 0:03:15.4]} 39... Kd6 {[%clk 0:02:20.1]} 40.
Nxh4 {[%clk 0:03:15.3]} 40... Kc5 {[%clk 0:02:19.2]} 41. Nf3 {[%clk 0:03:15.2]}
41... Kd6 {[%clk 0:02:18.3]} 42. Kb2 {[%clk 0:03:14.4]} 42... Kc5 {[%clk
0:02:17.8]} 43. Kc3 {[%clk 0:03:14.3]} 43... Kd6 {[%clk 0:02:17.4]} 44. Kc4
{[%clk 0:03:13.6]} 44... Ke7 {[%clk 0:02:16.1]} 45. Kc5 {[%clk 0:03:12.6]} 45...
Kd7 {[%clk 0:02:14.8]} 46. c4 {[%clk 0:03:11.7]} 46... Ke7 {[%clk 0:02:14.4]}
47. Kc6 {[%clk 0:03:11]} 47... Kf6 {[%clk 0:02:13.3]} 48. Kb7 {[%clk 0:03:10]}
48... Kf5 {[%clk 0:02:12.1]} 49. c5 {[%clk 0:03:09.9]} 49... Kf4 {[%clk
0:02:10.7]} 50. c6 {[%clk 0:03:09.8]} 50... Ke4 {[%clk 0:02:09.7]} 51. c7 {[%clk
0:03:09.7]} 51... Kf4 {[%clk 0:02:08.8]} 52. c8=Q {[%clk 0:03:09.6]} 52... Ke4
{[%clk 0:02:07.2]} 53. Qg4+ {[%clk 0:03:09.5]} 53... Kd3 {[%clk 0:02:06.4]} 54.
h4 {[%clk 0:03:08.5]} 54... Ke2 {[%clk 0:02:05.5]} 55. h5 {[%clk 0:03:08.4]}
55... Kxf2 {[%clk 0:02:05]} 56. h6 {[%clk 0:03:08.3]} 56... Ke3 {[%clk
0:02:03.3]} 57. h7 {[%clk 0:03:08.2]} 1-0

[Event "Live Chess"]
[Site "Chess.com"]
[Date "2023.05.20"]
[Round "-"]
[White "parcellforce"]
[Black "MarkLim1"]
[Result "0-1"]
[WhiteElo "1362"]
[BlackElo "1659"]
[TimeControl "300"]
[EndTime "15:18:24 PDT"]
[Termination "MarkLim1 won by resignation"]

1. d4 {[%clk 0:04:59.2]} 1... Nf6 {[%clk 0:04:58.6]} 2. c4 {[%clk 0:04:59.1]}
2... e6 {[%clk 0:04:57.5]} 3. Nc3 {[%clk 0:04:58.8]} 3... d5 {[%clk 0:04:56.7]}
4. Nf3 {[%clk 0:04:57.5]} 4... c5 {[%clk 0:04:55.7]} 5. e3 {[%clk 0:04:55.9]}
5... a6 {[%clk 0:04:52.1]} 6. Be2 {[%clk 0:04:54.6]} 6... dxc4 {[%clk
0:04:46.8]} 7. Bxc4 {[%clk 0:04:53.3]} 7... b5 {[%clk 0:04:46]} 8. Bd3 {[%clk
0:04:53]} 8... Bb7 {[%clk 0:04:45.2]} 9. O-O {[%clk 0:04:52.6]} 9... Nc6 {[%clk
0:04:43.1]} 10. Bc2 {[%clk 0:04:40.9]} 10... Be7 {[%clk 0:04:39.5]} 11. Re1
{[%clk 0:04:32.3]} 11... cxd4 {[%clk 0:04:36.9]} 12. Nxd4 {[%clk 0:04:29.9]}
12... O-O {[%clk 0:04:35.3]} 13. Nxc6 {[%clk 0:04:22.5]} 13... Bxc6 {[%clk
0:04:33.2]} 14. Qe2 {[%clk 0:04:07.5]} 14... b4 {[%clk 0:04:29.7]} 15. Nb1
{[%clk 0:03:59.8]} 15... Bb5 {[%clk 0:04:25]} 16. Qd1 {[%clk 0:03:56.9]} 16...
Qc7 {[%clk 0:04:23.5]} 17. b3 {[%clk 0:03:51.2]} 17... Rfd8 {[%clk 0:04:19.3]}
18. Bd2 {[%clk 0:03:02.1]} 18... Rac8 {[%clk 0:04:14.6]} 19. Bxh7+ {[%clk
0:02:31.5]} 19... Nxh7 {[%clk 0:04:10.1]} 20. a3 {[%clk 0:02:31.2]} 20... bxa3
{[%clk 0:04:07.1]} 21. Nxa3 {[%clk 0:02:28.2]} 21... Bxa3 {[%clk 0:04:00.7]} 22.
Rxa3 {[%clk 0:02:27.5]} 22... Qc2 {[%clk 0:03:58.6]} 23. Qxc2 {[%clk 0:02:08.3]}
23... Rxc2 {[%clk 0:03:54.6]} 24. Ba5 {[%clk 0:02:08.1]} 24... Rdc8 {[%clk
0:03:51.1]} 25. Raa1 {[%clk 0:02:00.1]} 25... Nf6 {[%clk 0:03:47.6]} 26. b4
{[%clk 0:01:59.2]} 26... Ne4 {[%clk 0:03:45.8]} 27. Rad1 {[%clk 0:01:56.1]}
27... Nxf2 {[%clk 0:03:40.3]} 28. Rd8+ {[%clk 0:01:45.1]} 28... Rxd8 {[%clk
0:03:38.1]} 29. Bxd8 {[%clk 0:01:44.5]} 29... Nd3 {[%clk 0:03:25.8]} 30. Rd1
{[%clk 0:01:36]} 30... Nxb4 {[%clk 0:03:23.6]} 31. Ba5 {[%clk 0:01:35.6]} 31...
Nd5 {[%clk 0:03:21.7]} 32. e4 {[%clk 0:01:35.2]} 32... Ne3 {[%clk 0:03:15.9]}
33. Rd8+ {[%clk 0:01:25.1]} 33... Kh7 {[%clk 0:03:12.4]} 34. e5 {[%clk
0:01:07.6]} 34... Rxg2+ {[%clk 0:03:10.5]} 35. Kh1 {[%clk 0:01:07.1]} 35... Ra2
{[%clk 0:03:08]} 0-1

[Event "Live Chess"]
[Site "Chess.com"]
[Date "2023.05.20"]
[Round "-"]
[White "AbilifyXL"]
[Black "LiamClery2020"]
[Result "1/2-1/2"]
[WhiteElo "1975"]
[BlackElo "2072"]
[TimeControl "300"]
[EndTime "15:18:25 PDT"]
[Termination "Game drawn by agreement"]

1. d4 {[%clk 0:04:59.5]} 1... Nf6 {[%clk 0:04:59.9]} 2. c4 {[%clk 0:04:58.4]}
2... g6 {[%clk 0:04:58.4]} 3. Nc3 {[%clk 0:04:52.1]} 3... d5 {[%clk 0:04:57.3]}
4. Nf3 {[%clk 0:04:50.8]} 4... Bg7 {[%clk 0:04:56.1]} 5. Bg5 {[%clk 0:04:50]}
5... c6 {[%clk 0:04:54.7]} 6. cxd5 {[%clk 0:04:48.7]} 6... cxd5 {[%clk
0:04:53.3]} 7. e3 {[%clk 0:04:48.2]} 7... O-O {[%clk 0:04:52.6]} 8. Be2 {[%clk
0:04:47.4]} 8... Nc6 {[%clk 0:04:52.1]} 9. O-O {[%clk 0:04:46.8]} 9... Bf5
{[%clk 0:04:49.1]} 10. a3 {[%clk 0:04:45.1]} 10... Ne4 {[%clk 0:04:48.5]} 11.
Bf4 {[%clk 0:04:42.7]} 11... Re8 {[%clk 0:04:45.9]} 12. Rc1 {[%clk 0:04:41.3]}
12... h6 {[%clk 0:04:43.7]} 13. h3 {[%clk 0:04:39.8]} 13... g5 {[%clk
0:04:42.7]} 14. Bh2 {[%clk 0:04:38.2]} 14... Nxc3 {[%clk 0:04:42]} 15. Rxc3
{[%clk 0:04:37.1]} 15... Be4 {[%clk 0:04:39.3]} 16. b4 {[%clk 0:04:32.7]} 16...
e5 {[%clk 0:04:38.4]} 17. dxe5 {[%clk 0:04:29.1]} 17... Nxe5 {[%clk 0:04:36.5]}
18. Nxe5 {[%clk 0:04:28.2]} 18... Bxe5 {[%clk 0:04:34.9]} 19. Bxe5 {[%clk
0:04:26.9]} 19... Rxe5 {[%clk 0:04:34.8]} 20. Bf3 {[%clk 0:04:21.8]} 20... Qf6
{[%clk 0:04:31.2]} 21. Bxe4 {[%clk 0:04:18]} 21... dxe4 {[%clk 0:04:29.8]} 22.
Rc4 {[%clk 0:04:16.6]} 22... Rd8 {[%clk 0:04:26.4]} 23. Rd4 {[%clk 0:04:15.4]}
23... Rxd4 {[%clk 0:04:22.7]} 24. Qxd4 {[%clk 0:04:15.3]} 24... Re6 {[%clk
0:04:21.8]} 25. Rd1 {[%clk 0:04:13.6]} 25... Qxd4 {[%clk 0:04:20.6]} 26. Rxd4
{[%clk 0:04:13.5]} 26... Ra6 {[%clk 0:04:18.1]} 27. Rd7 {[%clk 0:04:11.6]} 27...
Rxa3 {[%clk 0:04:17]} 28. Rxb7 {[%clk 0:04:10.5]} 28... Rb3 {[%clk 0:04:16.6]}
29. Rxa7 {[%clk 0:04:09.5]} 29... Rxb4 {[%clk 0:04:15.9]} 30. g4 {[%clk
0:04:08.6]} 1/2-1/2

[Event "Live Chess"]
[Site "Chess.com"]
[Date "2023.05.20"]
[Round "-"]
[White "Duke_of_Bebington"]
[Black "JohanKjeldahl"]
[Result "0-1"]
[WhiteElo "1577"]
[BlackElo "1864"]
[TimeControl "300"]
[EndTime "15:18:33 PDT"]
[Termination "JohanKjeldahl won by resignation"]

1. e4 {[%clk 0:04:58.3]} 1... c5 {[%clk 0:04:58.1]} 2. c3 {[%clk 0:04:56.6]}
2... g6 {[%clk 0:04:55.8]} 3. d4 {[%clk 0:04:55.2]} 3... cxd4 {[%clk 0:04:54.9]}
4. cxd4 {[%clk 0:04:54.3]} 4... d5 {[%clk 0:04:54.5]} 5. e5 {[%clk 0:04:51.2]}
5... Bg7 {[%clk 0:04:53.4]} 6. f4 {[%clk 0:04:48.8]} 6... Nc6 {[%clk 0:04:51.9]}
7. Nf3 {[%clk 0:04:47.9]} 7... Bg4 {[%clk 0:04:49.8]} 8. Be2 {[%clk 0:04:46.5]}
8... e6 {[%clk 0:04:48.2]} 9. O-O {[%clk 0:04:45.1]} 9... f6 {[%clk 0:04:46.8]}
10. h3 {[%clk 0:04:42.8]} 10... Bxf3 {[%clk 0:04:45]} 11. Rxf3 {[%clk
0:04:42.7]} 11... fxe5 {[%clk 0:04:43.7]} 12. fxe5 {[%clk 0:04:40.6]} 12... Qe7
{[%clk 0:04:39.5]} 13. Nc3 {[%clk 0:04:38]} 13... a6 {[%clk 0:04:37.3]} 14. Be3
{[%clk 0:04:36.2]} 14... O-O-O {[%clk 0:04:35.5]} 15. Rc1 {[%clk 0:04:34.1]}
15... Kb8 {[%clk 0:04:34.5]} 16. Na4 {[%clk 0:04:31.2]} 16... Nh6 {[%clk
0:04:31.3]} 17. Bxa6 {[%clk 0:04:21.6]} 17... Nf5 {[%clk 0:04:08.3]} 18. Bf2
{[%clk 0:03:57.7]} 18... Bh6 {[%clk 0:04:02.6]} 19. Rc5 {[%clk 0:03:40.9]} 19...
Ka7 {[%clk 0:03:45.6]} 20. Bd3 {[%clk 0:03:28.3]} 20... Rhf8 {[%clk 0:03:37.7]}
21. Qb3 {[%clk 0:03:12.9]} 21... Qc7 {[%clk 0:03:36.3]} 22. Be1 {[%clk
0:03:02.5]} 22... Nfxd4 {[%clk 0:03:31.9]} 23. Qa3 {[%clk 0:03:00.2]} 23...
Nxf3+ {[%clk 0:03:26]} 24. gxf3 {[%clk 0:02:58.3]} 24... Be3+ {[%clk 0:03:23.5]}
25. Kh2 {[%clk 0:02:56.1]} 25... Bxc5 {[%clk 0:03:16.1]} 26. Qxc5+ {[%clk
0:02:56]} 26... Kb8 {[%clk 0:03:14.6]} 27. Ba5 {[%clk 0:02:51.5]} 27... Qxe5+
{[%clk 0:03:11.7]} 28. Kg2 {[%clk 0:02:47.3]} 28... Qg5+ {[%clk 0:03:04.2]} 29.
Kf2 {[%clk 0:02:44]} 29... Qh4+ {[%clk 0:03:02.3]} 30. Ke2 {[%clk 0:02:41.7]}
30... Qxa4 {[%clk 0:02:58.9]} 31. Bxd8 {[%clk 0:02:33.1]} 31... Rxd8 {[%clk
0:02:56.9]} 32. b3 {[%clk 0:02:32.5]} 32... Qxa2+ {[%clk 0:02:55.2]} 0-1

[Event "Live Chess"]
[Site "Chess.com"]
[Date "2023.05.20"]
[Round "-"]
[White "LanceMaster23"]
[Black "Richardallis"]
[Result "0-1"]
[WhiteElo "1863"]
[BlackElo "1881"]
[TimeControl "300"]
[EndTime "15:18:43 PDT"]
[Termination "Richardallis won by resignation"]

1. Nf3 {[%clk 0:04:55.1]} 1... f5 {[%clk 0:04:56.8]} 2. d4 {[%clk 0:04:54.4]}
2... Nf6 {[%clk 0:04:56.2]} 3. Bf4 {[%clk 0:04:53.8]} 3... d6 {[%clk 0:04:54.4]}
4. e3 {[%clk 0:04:53]} 4... g6 {[%clk 0:04:53]} 5. h3 {[%clk 0:04:50.2]} 5...
Bg7 {[%clk 0:04:52.4]} 6. Be2 {[%clk 0:04:49.5]} 6... O-O {[%clk 0:04:51.2]} 7.
Nbd2 {[%clk 0:04:48.9]} 7... Nbd7 {[%clk 0:04:48.4]} 8. c3 {[%clk 0:04:48.2]}
8... Re8 {[%clk 0:04:47.5]} 9. Qb3+ {[%clk 0:04:47.2]} 9... e6 {[%clk
0:04:45.4]} 10. O-O {[%clk 0:04:41.3]} 10... Kh8 {[%clk 0:04:43.8]} 11. Ng5
{[%clk 0:04:37.3]} 11... Qe7 {[%clk 0:04:42.7]} 12. Bc4 {[%clk 0:04:34]} 12...
d5 {[%clk 0:04:38.4]} 13. Be2 {[%clk 0:04:32.7]} 13... c6 {[%clk 0:04:37.5]} 14.
a4 {[%clk 0:04:30.1]} 14... a6 {[%clk 0:04:31.2]} 15. Ngf3 {[%clk 0:04:25.3]}
15... Ne4 {[%clk 0:04:29.8]} 16. Rad1 {[%clk 0:04:23.9]} 16... h6 {[%clk
0:04:26.6]} 17. Rfe1 {[%clk 0:04:14.6]} 17... b5 {[%clk 0:04:24.7]} 18. Nf1
{[%clk 0:04:11.9]} 18... g5 {[%clk 0:04:20.9]} 19. Bh2 {[%clk 0:04:10.6]} 19...
Kh7 {[%clk 0:04:17.7]} 20. N3d2 {[%clk 0:04:09.5]} 20... Rf8 {[%clk 0:04:07.6]}
21. f3 {[%clk 0:04:08.5]} 21... Nd6 {[%clk 0:04:05.3]} 22. Bd3 {[%clk
0:04:03.4]} 22... Kg8 {[%clk 0:04:02.8]} 23. axb5 {[%clk 0:03:49.8]} 23... axb5
{[%clk 0:04:01]} 24. Ra1 {[%clk 0:03:48.5]} 24... Bb7 {[%clk 0:04:00]} 25. e4
{[%clk 0:03:43.5]} 25... fxe4 {[%clk 0:03:47.1]} 26. fxe4 {[%clk 0:03:43.4]}
26... Qf7 {[%clk 0:03:43.7]} 27. Bxd6 {[%clk 0:03:34.4]} 27... Qf2+ {[%clk
0:03:41.9]} 28. Kh2 {[%clk 0:03:23.3]} 28... Rxa1 {[%clk 0:03:37.1]} 29. Rxa1
{[%clk 0:03:20.8]} 29... Rf7 {[%clk 0:03:34.7]} 30. Bg3 {[%clk 0:03:16.2]} 30...
Qf6 {[%clk 0:03:27.6]} 31. e5 {[%clk 0:03:12.7]} 31... Qd8 {[%clk 0:03:24.8]}
32. Bg6 {[%clk 0:02:48.3]} 32... Rf8 {[%clk 0:03:22.9]} 33. Qd1 {[%clk
0:02:43.7]} 33... c5 {[%clk 0:03:17.3]} 34. Qg4 {[%clk 0:02:39.2]} 34... Qe7
{[%clk 0:03:13.5]} 35. Ra7 {[%clk 0:02:38.2]} 35... Rb8 {[%clk 0:03:07.2]} 36.
Nb3 {[%clk 0:02:14.1]} 36... c4 {[%clk 0:03:04]} 37. Na5 {[%clk 0:02:10]} 37...
Ba8 {[%clk 0:02:58.1]} 38. Rxa8 {[%clk 0:01:46.7]} 38... Rxa8 {[%clk 0:02:55]}
39. Nc6 {[%clk 0:01:45.6]} 39... Qf8 {[%clk 0:02:29.3]} 40. Qxe6+ {[%clk
0:01:44.1]} 40... Kh8 {[%clk 0:02:28.2]} 41. Ne3 {[%clk 0:01:10.1]} 41... Nb8
{[%clk 0:02:22.5]} 42. Nxd5 {[%clk 0:00:58.3]} 42... Ra6 {[%clk 0:02:17]} 43.
Nde7 {[%clk 0:00:38.6]} 43... Nxc6 {[%clk 0:02:15.2]} 44. Nxc6 {[%clk
0:00:37.1]} 44... Ra1 {[%clk 0:02:05]} 45. Qe8 {[%clk 0:00:34.7]} 45... Ra6
{[%clk 0:01:58.2]} 46. Qxf8+ {[%clk 0:00:29.8]} 46... Bxf8 {[%clk 0:01:57.6]}
47. d5 {[%clk 0:00:29.7]} 47... Kg7 {[%clk 0:01:53.9]} 48. Bh5 {[%clk
0:00:27.2]} 48... Bc5 {[%clk 0:01:51.4]} 49. e6 {[%clk 0:00:23.7]} 49... Kf8
{[%clk 0:01:50.2]} 50. Ne5 {[%clk 0:00:18.6]} 50... Ke7 {[%clk 0:01:44.3]} 51.
Ng6+ {[%clk 0:00:14.8]} 51... Kd8 {[%clk 0:01:43.4]} 52. e7+ {[%clk 0:00:14.1]}
52... Bxe7 {[%clk 0:01:42.2]} 53. Nxe7 {[%clk 0:00:14]} 53... Kxe7 {[%clk
0:01:41.3]} 54. d6+ {[%clk 0:00:13.9]} 54... Kd8 {[%clk 0:01:39.7]} 55. Bg4
{[%clk 0:00:12.8]} 55... Ra2 {[%clk 0:01:37.4]} 56. Be6 {[%clk 0:00:12.1]} 56...
Rxb2 {[%clk 0:01:35.8]} 57. Be5 {[%clk 0:00:11.5]} 57... Rd2 {[%clk 0:01:29.7]}
58. Bf6+ {[%clk 0:00:10.9]} 58... Ke8 {[%clk 0:01:28.3]} 59. d7+ {[%clk
0:00:10.8]} 59... Rxd7 {[%clk 0:01:27.1]} 60. Bxd7+ {[%clk 0:00:10.5]} 60...
Kxd7 {[%clk 0:01:26.7]} 61. Bd4 {[%clk 0:00:10.1]} 61... Kd6 {[%clk 0:01:25.8]}
62. Bc5+ {[%clk 0:00:09.6]} 62... Kxc5 {[%clk 0:01:24.7]} 63. h4 {[%clk
0:00:09.5]} 63... b4 {[%clk 0:01:23.4]} 64. hxg5 {[%clk 0:00:08.5]} 64... hxg5
{[%clk 0:01:22.3]} 65. cxb4+ {[%clk 0:00:08.4]} 65... Kxb4 {[%clk 0:01:21.3]}
66. Kg3 {[%clk 0:00:08.3]} 66... c3 {[%clk 0:01:20.8]} 67. Kg4 {[%clk
0:00:08.2]} 67... c2 {[%clk 0:01:20.1]} 68. Kxg5 {[%clk 0:00:08.1]} 68... c1=Q+
{[%clk 0:01:19.1]} 69. Kh5 {[%clk 0:00:07.7]} 69... Qh1+ {[%clk 0:01:17]} 0-1